bitfinex/quotes_SOLUSD_20260223
["timestamp","ask_amount","ask_price","bid_price","bid_amount"]
[1771812052465,4.39623511,78.09,78.04,21.00619214]
[1771812052466,3.69383402,78.087,78.051,4.38562469]
[1771812052770,21.00619214,78.07,78.04,4.38562469]
[1771812053373,4.39623511,78.075,78.033,44.85281867]
[1771812053374,21.00619214,78.06,78.034,4.38562469]
[1771812053553,3.69383402,78.077,78.041,4.38562469]
[1771812054053,21.00619214,78.09,78.041,4.38562469]
[1771812054365,21.00619214,78.08,78.041,4.38562469]
[1771812054846,5.36086188,78.096,78.06,21.00619214]
[1771812055047,51.16713502,78.176,78.033,12.81509105]
[1771812055048,4.39623511,78.109,78.071,4.38562469]
[1771812055252,21.00619214,78.13,78.082,4.38562469]
[1771812055452,21.00619214,78.13,78.072,44.83041294]
[1771812055453,21.00619214,78.16,78.111,4.38562469]
[1771812055649,9.75709699,78.158,78.114,4.38562469]
[1771812055866,4.39623511,78.17,78.12,21.00619214]
[1771812056067,21.00619214,78.15,78.117,4.38562469]
[1771812056368,21.00619214,78.16,78.121,4.38562469]
[1771812056755,25.40242725,78.17,78.121,4.38562469]
[1771812057154,21.00619214,78.18,78.141,4.38562469]
[1771812057354,4.39623511,78.179,78.142,12.79721532]
[1771812057670,3.69383402,78.177,78.143,4.38562469]
[1771812057971,12.79083153,78.181,78.15,21.00619214]
[1771812058169,21.00619214,78.19,78.15,21.00619214]
[1771812058170,12.78957115,78.189,78.151,4.38562469]
[1771812058367,21.00619214,78.18,78.151,4.38562469]
[1771812058570,0.28432314,78.179,78.151,4.38562469]
[1771812058771,0.28432314,78.158,78.117,4.38562469]
[1771812058963,3.69383402,78.167,78.131,4.38562469]
[1771812059265,3.69383402,78.167,78.132,17.18447791]
[1771812059468,0.28432314,78.159,78.132,4.38562469]
[1771812059668,0.28432314,78.159,78.064,51.23960395]
[1771812059669,21.00619214,78.14,78.111,4.38562469]
[1771812059871,5.36086188,78.165,78.091,12.80557298]
[1771812059872,21.29051528,78.17,78.131,4.38562469]
[1771812060077,3.69383402,78.167,78.131,4.38562469]
[1771812060273,21.00619214,78.16,78.131,4.38562469]
[1771812060473,3.69383402,78.177,78.141,4.38562469]
[1771812060655,21.00619214,78.18,78.141,4.38562469]
[1771812060862,12.78788731,78.199,78.161,4.38562469]
[1771812061069,21.00619214,78.19,78.161,4.38562469]
[1771812061373,4.39623511,78.189,78.147,4.38562469]
[1771812061579,21.00619214,78.17,78.141,12.79737909]
[1771812061784,4.39623511,78.169,78.124,4.38562469]
[1771812061956,21.00619214,78.15,78.113,4.38562469]
[1771812062160,21.00619214,78.14,78.113,4.38562469]
[1771812062465,21.00619214,78.13,78.102,4.38562469]
[1771812063174,21.00619214,78.13,78.092,4.38562469]
[1771812063381,21.00619214,78.1,78.067,4.38562469]
[1771812063577,21.00619214,78.08,78.042,4.38562469]
[1771812064659,21.00619214,78.08,78.04,21.00619214]
[1771812064660,3.69383402,78.078,78.04,21.00619214]
[1771812064871,21.00619214,78.07,78.041,4.38562469]
[1771812065273,21.00619214,78.06,78.023,17.20235821]
[1771812065471,21.00619214,78.06,78.024,4.38562469]
[1771812065666,3.69383402,78.077,78.012,4.38562469]
[1771812065667,0.28432314,78.049,78.012,4.38562469]
[1771812065972,25.40242725,78.05,78.01,0.2]
[1771812066278,3.69383402,78.056,78.02,25.39181683]
[1771812066576,3.69383402,78.056,78.021,4.38562469]
[1771812066777,21.00619214,78.03,78.01,0.2]
[1771812066977,21.00619214,78.02,77.99,12.82215668]
[1771812067361,21.00619214,78.01,77.977,4.38562469]
[1771812067562,0.28432314,78.019,77.981,4.38562469]
[1771812067775,12.81607648,78.027,77.99,21.00619214]
[1771812067776,0.28432314,78.027,77.99,21.00619214]
[1771812067959,3.97815716,78.027,77.991,4.38562469]
[1771812068166,21.00619214,78.0,77.967,12.82593917]
[1771812068379,21.00619214,78.0,77.966,4.38562469]
[1771812068583,21.00619214,77.99,77.955,16.9670963]
[1771812068773,21.00619214,77.97,77.947,12.82906808]
[1771812068961,21.00619214,77.97,77.942,12.83005311]
[1771812069464,21.00619214,77.97,77.899,3.69383402]
[1771812069465,21.00619214,77.95,77.912,16.97426248]
[1771812069664,21.00619214,77.95,77.913,4.13926916]
[1771812069869,3.69383402,77.947,77.913,4.13926916]
[1771812070081,21.00619214,77.94,77.905,4.13926916]
[1771812070379,21.00619214,77.94,77.91,21.00619214]
[1771812070681,44.88963561,77.969,77.921,4.13926916]
[1771812070682,12.82561017,77.969,77.921,4.13926916]
[1771812070887,3.69383402,77.957,77.921,4.13926916]
[1771812071385,3.69383402,77.957,77.922,12.83334616]
[1771812071783,21.00619214,77.95,77.915,12.83435958]
[1771812071983,3.69383402,77.957,77.92,21.00619214]
[1771812072283,3.69383402,77.957,77.916,4.13926916]
[1771812072284,21.00619214,77.95,77.916,4.13926916]
[1771812072481,4.08050036,77.986,77.94,21.00619214]
[1771812072663,21.00619214,77.98,77.95,21.00619214]
[1771812072866,21.00619214,78.01,77.971,4.13926916]
[1771812073066,21.00619214,78.0,77.96,21.00619214]
[1771812073287,21.00619214,77.99,77.96,21.00619214]
[1771812073493,21.00619214,77.98,77.954,12.82803467]
[1771812073691,21.00619214,77.98,77.94,21.00619214]
[1771812073990,21.00619214,77.98,77.869,51.36822228]
[1771812073991,21.00619214,77.96,77.926,4.13926916]
[1771812074162,4.08050036,77.946,77.901,4.13926916]
[1771812074369,21.00619214,77.96,77.92,21.00619214]
[1771812074596,3.69383402,77.967,77.931,4.13926916]
[1771812075301,5.36086188,77.984,77.941,4.13926916]
[1771812075302,3.69383402,77.977,77.941,4.13926916]
[1771812075603,21.00619214,77.96,77.928,4.13926916]
[1771812075792,21.00619214,77.96,77.925,12.8328521]
[1771812075793,3.69383402,77.977,77.94,21.00619214]
[1771812075994,3.69383402,77.987,77.951,4.13926916]
[1771812076200,21.00619214,77.99,77.951,4.13926916]
[1771812076397,21.00619214,77.98,77.951,4.13926916]
[1771812076612,3.69383402,77.987,77.951,4.13926916]
[1771812077208,21.00619214,77.97,77.938,4.20735618]
[1771812077708,0.28432314,77.979,77.941,4.20735618]
[1771812078417,21.00619214,77.97,77.941,4.20735618]
[1771812078722,21.00619214,77.97,77.863,51.37206233]
[1771812078723,0.28432314,77.969,77.933,12.83144357]
[1771812079405,21.00619214,77.97,77.934,4.20735618]
[1771812079615,21.00619214,77.97,77.936,4.20735618]
[1771812079796,4.40909453,77.977,77.941,4.20735618]
[1771812079797,3.69383402,77.977,77.941,4.20735618]
[1771812079998,21.00619214,77.97,77.941,4.20735618]
[1771812080409,3.69383402,77.977,77.941,4.20735618]
[1771812081121,21.00619214,77.99,77.941,4.20735618]
[1771812081289,21.00619214,77.99,77.951,4.20735618]
[1771812081602,21.00619214,78.02,77.981,4.20735618]
[1771812081803,0.1,78.09,77.972,44.88790847]
[1771812081804,4.40909453,78.049,78.001,4.20735618]
[1771812082003,4.40909453,78.06,78.02,25.21354832]
[1771812082194,21.00619214,78.06,78.021,4.20735618]
[1771812082398,21.00619214,78.07,78.031,4.20735618]
[1771812082899,3.69383402,78.077,78.041,4.20735618]
[1771812083209,4.40909453,78.088,78.001,4.20735618]
[1771812083395,21.00619214,78.06,78.021,4.20735618]
[1771812083596,21.00619214,78.06,78.023,4.20735618]
[1771812083795,3.69383402,78.068,78.023,4.20735618]
[1771812084002,3.69383402,78.068,78.022,44.85914228]
[1771812084003,21.00619214,78.08,78.041,4.20735618]
[1771812084201,21.00619214,78.07,78.041,4.20735618]
[1771812084399,33.81356918,78.08,78.041,4.20735618]
[1771812084613,3.69383402,78.082,78.041,4.20735618]
[1771812085120,3.69383402,78.077,78.041,4.20735618]
[1771812085705,3.69383402,78.073,78.042,12.81361318]
[1771812085915,3.69383402,78.073,78.022,32.04224449]
[1771812085916,21.04347344,78.07,78.032,4.20735618]
[1771812086111,3.69383402,78.073,78.041,4.20735618]
[1771812086412,4.40909453,78.069,78.031,12.81541951]
[1771812086620,21.04347344,78.06,78.031,12.81541951]
[1771812086920,0.28432314,78.069,78.025,12.816366]
[1771812087118,4.69341767,78.069,78.025,12.816366]
[1771812087517,21.04347344,78.06,78.025,12.816366]
[1771812087825,21.04347344,78.06,77.98,24.73730746]
[1771812087826,21.04347344,78.05,77.981,12.96579809]
[1771812088028,21.04347344,78.04,78.0,21.04347344]
[1771812088202,3.69383402,78.057,78.02,21.04347344]
[1771812088402,3.69383402,78.057,78.021,4.20735618]
[1771812088717,4.40909453,78.039,78.0,21.04347344]
[1771812088921,21.04347344,78.04,78.001,4.20735618]
[1771812089109,21.04347344,78.05,78.011,4.20735618]
[1771812089509,4.40909453,78.049,78.011,4.20735618]
[1771812089708,21.04347344,78.04,78.009,12.81894385]
[1771812090040,21.04347344,78.05,78.011,4.20735618]
[1771812090414,21.04347344,78.04,78.009,44.8665281]
[1771812091327,21.04347344,78.05,78.011,4.20735618]
[1771812091528,4.40909453,78.049,78.009,12.81894385]
[1771812091832,4.40909453,78.049,78.0,21.04347344]
[1771812091833,4.40909453,78.039,78.0,33.86398626]
[1771812092037,4.40909453,78.038,78.0,12.82051282]
[1771812092432,4.40909453,78.037,78.0,12.82051282]
[1771812092631,21.04347344,78.03,78.0,12.82051282]
[1771812092826,4.40909453,78.037,78.0,12.82051282]
[1771812093025,3.69383402,78.047,78.011,4.20735618]
[1771812093334,21.04347344,78.07,78.03,21.04347344]
[1771812093632,21.14347344,78.09,78.05,21.04347344]
[1771812093833,4.40909453,78.089,78.051,12.81213565]
[1771812094030,4.40909453,78.087,78.051,12.81213565]
[1771812094329,21.04347344,78.08,78.052,4.20735618]
[1771812094532,21.04347344,78.08,78.041,4.20735618]
[1771812095136,25.45256797,78.08,78.041,4.20735618]
[1771812095444,21.04347344,78.07,78.041,4.20735618]
[1771812095610,0.28432314,78.069,78.031,12.81541951]
[1771812095810,0.28432314,78.067,78.031,12.81541951]
[1771812096010,25.45256797,78.06,78.021,12.81706207]
[1771812096913,21.04347344,78.05,78.011,4.20735618]
[1771812097112,3.69383402,78.059,78.02,21.04347344]
[1771812097113,3.69383402,78.057,78.02,21.04347344]
[1771812097330,21.04347344,78.06,78.021,4.20735618]
[1771812097830,21.04347344,78.06,78.022,12.81689779]
[1771812098031,21.04347344,78.08,78.041,4.20735618]
[1771812098414,12.80648587,78.086,78.05,21.04347344]
[1771812098711,21.14347344,78.09,78.06,21.04347344]
[1771812098712,0.1,78.09,78.06,21.04347344]
[1771812099036,0.1,78.09,78.06,25.13645323]
[1771812099237,4.22225402,78.088,78.051,4.09297979]
[1771812099543,4.22225402,78.079,78.041,4.09297979]
[1771812099837,12.80770511,78.078,78.042,12.81361318]
[1771812100020,12.80770511,78.078,78.043,4.09297979]
[1771812100625,12.80770511,78.078,78.035,12.81462212]
[1771812100626,4.22225402,78.069,78.035,12.81462212]
[1771812101019,4.22225402,78.067,78.02,53.08630836]
[1771812101318,4.22225402,78.067,78.03,21.04347344]
[1771812101834,12.80836129,78.074,78.04,21.04347344]
[1771812102037,21.04347344,78.07,78.036,12.81443725]
[1771812102235,4.50657716,78.069,78.031,16.90834459]
[1771812102418,4.50657716,78.069,78.032,4.09297979]
[1771812102623,4.22225402,78.069,78.032,4.09297979]
[1771812103315,12.80672096,78.084,78.05,21.04347344]
[1771812103516,4.22225402,78.079,78.032,4.09297979]
[1771812103733,21.04347344,78.08,78.032,4.09297979]
[1771812103734,4.22225402,78.077,78.032,4.09297979]
[1771812104038,0.1,78.09,78.032,4.09297979]
[1771812104039,0.28432314,78.067,78.032,4.09297979]
[1771812104332,4.22225402,78.069,78.033,4.09297979]
[1771812105141,12.80934569,78.068,78.033,4.09297979]
[1771812106324,17.03159971,78.068,78.034,12.81492682]
[1771812107034,4.22225402,78.067,78.023,4.09297979]
[1771812107335,4.22225402,78.067,78.03,21.04347344]
[1771812107646,5.36086188,78.086,78.051,4.09297979]
[1771812107647,3.69383402,78.086,78.051,4.09297979]
[1771812108140,4.22225402,78.085,78.051,4.09297979]
[1771812108519,21.04347344,78.12,78.071,4.09297979]
[1771812108718,21.04347344,78.12,78.052,76.87182903]
[1771812108719,4.22225402,78.134,78.091,4.09297979]
[1771812108914,4.22225402,78.146,78.101,4.09297979]
[1771812109132,7.91608804,78.146,78.11,21.04347344]
[1771812109335,51.14874689,78.204,78.06,3.69383402]
[1771812109336,4.22225402,78.162,78.121,4.09297979]
[1771812109537,0.1,78.17,78.131,4.09297979]
[1771812109832,25.36572746,78.17,78.13,25.13645323]
[1771812110032,0.1,78.17,78.141,4.09297979]
[1771812110433,0.1,78.17,78.142,12.79721532]
[1771812110827,4.22225402,78.169,78.13,16.89216064]
[1771812111035,0.14216157,78.168,78.131,4.09297979]
[1771812111442,4.22225402,78.169,78.131,4.09297979]
[1771812111638,4.22225402,78.169,78.14,21.04347344]
[1771812111831,0.1,78.17,78.15,25.13645323]
[1771812112135,0.1,78.17,78.13,44.79713298]
[1771812112136,0.1,78.17,78.13,65.84060642]
[1771812112343,21.14347344,78.17,78.131,4.09297979]
[1771812112542,0.1,78.17,78.14,21.04347344]
[1771812112738,0.1,78.17,78.133,4.09297979]
[1771812112948,4.22225402,78.199,78.161,4.09297979]
[1771812113132,12.78805084,78.198,78.161,4.09297979]
[1771812113445,21.04347344,78.26,78.151,4.09297979]
[1771812113446,4.22225402,78.189,78.151,4.09297979]
[1771812113742,25.26572746,78.2,78.132,44.79598627]
[1771812113951,4.22225402,78.219,78.18,21.04347344]
[1771812114526,4.22225402,78.21,78.18,21.04347344]
[1771812114745,21.14347344,78.22,78.171,12.79246779]
[1771812114746,0.1,78.22,78.19,21.04347344]
[1771812114925,4.22225402,78.209,78.165,12.79344444]
[1771812115125,4.50657716,78.208,78.165,44.77706882]
[1771812115630,4.50657716,78.208,78.165,12.79344444]
[1771812115952,4.50657716,78.208,78.131,3.69383402]
[1771812115953,4.22225402,78.176,78.117,12.80131085]
[1771812116137,21.04347344,78.16,78.121,4.09297979]
[1771812116657,12.79443186,78.159,78.122,12.80049153]
[1771812116950,4.22225402,78.158,78.122,12.80049153]
[1771812117533,4.22225402,78.158,78.122,16.89347132]
[1771812117932,4.22225402,78.158,78.122,12.80049153]
[1771812119748,3.69383402,78.177,78.141,4.09297979]
[1771812120131,3.69383402,78.177,78.13,21.04347344]
[1771812120331,4.22225402,78.176,78.131,4.09297979]
[1771812121147,0.28432314,78.179,78.141,4.09297979]
[1771812121148,4.22225402,78.179,78.141,4.09297979]
[1771812121364,4.22225402,78.217,78.171,4.09297979]
[1771812121652,4.22225402,78.209,78.16,21.04347344]
[1771812121861,21.04347344,78.2,78.161,4.09297979]
[1771812122155,21.04347344,78.2,78.132,95.99139916]
[1771812122156,21.04347344,78.2,78.149,4.09297979]
[1771812122367,21.04347344,78.2,78.132,95.99139916]
[1771812122368,21.04347344,78.17,78.132,44.79598627]
[1771812122532,4.22225402,78.169,78.132,44.79598627]
[1771812122847,21.04347344,78.15,78.111,4.09297979]
[1771812123051,0.28432314,78.168,78.121,4.09297979]
[1771812123230,4.22225402,78.167,78.121,4.09297979]
[1771812123431,4.22225402,78.159,78.112,44.80745595]
[1771812123731,4.22225402,78.159,78.113,4.09297979]
[1771812124143,0.28432314,78.158,78.113,4.09297979]
[1771812124343,21.04347344,78.14,78.105,16.89612689]
[1771812124741,4.50657716,78.149,78.105,16.89612689]
[1771812125052,21.04347344,78.14,78.105,16.89612689]
[1771812125250,4.22225402,78.139,78.105,12.8031471]
[1771812125841,4.50657716,78.147,78.105,16.89612689]
[1771812126042,4.22225402,78.147,78.11,21.04347344]
[1771812126241,3.69383402,78.157,78.111,4.09297979]
[1771812126543,21.04347344,78.15,78.111,4.09297979]
[1771812127234,21.04347344,78.15,78.057,51.24394942]
[1771812127235,4.22225402,78.148,78.1,21.04347344]
[1771812127549,4.22225402,78.139,78.103,12.80346952]
[1771812127750,21.04347344,78.15,78.11,21.04347344]
[1771812127954,21.04347344,78.15,78.111,4.09297979]
[1771812128148,4.22225402,78.152,78.12,21.04347344]
[1771812128353,4.45159821,78.163,78.121,4.32505784]
[1771812129354,4.45159821,78.163,78.12,21.04347344]
[1771812129355,4.45159821,78.188,78.141,4.32505784]
[1771812129540,21.04347344,78.2,78.161,4.32505784]
[1771812129858,21.04347344,78.2,78.122,108.80417806]
[1771812129859,25.49507165,78.18,78.14,21.04347344]
[1771812130054,21.04347344,78.16,78.122,12.80049153]
[1771812130258,4.45159821,78.149,78.122,12.80049153]
[1771812130454,4.45159821,78.149,78.114,12.80179752]
[1771812130842,21.04347344,78.14,78.114,12.80179752]
[1771812131044,4.45159821,78.139,78.102,4.32505784]
[1771812131259,12.79787043,78.138,78.103,12.80360549]
[1771812131843,4.45159821,78.139,78.103,12.80360549]
[1771812132143,4.5,78.177,78.13,21.04347344]
[1771812132662,4.5,78.159,78.11,21.04347344]
[1771812133158,4.5,78.149,78.11,21.04347344]
[1771812133365,4.5,78.129,78.092,32.01320992]
[1771812134766,4.5,78.129,78.1,21.04347344]
[1771812134937,4.5,78.142,78.11,21.04347344]
[1771812135452,4.5,78.154,78.111,44.80802959]
[1771812135773,4.5,78.149,78.111,44.80802959]
[1771812135945,4.5,78.139,78.111,12.80229417]
[1771812136246,4.5,78.139,78.101,12.80393336]
[1771812136445,4.5,78.129,78.101,12.80393336]
[1771812137162,4.5,78.119,78.07,21.04347344]
[1771812137362,4.5,78.109,78.07,21.04347344]
[1771812137568,4.5,78.109,78.06,0.2]
[1771812137569,3.69383402,78.125,78.08,21.04347344]
[1771812137743,4.5,78.119,78.071,44.83098716]
[1771812138144,4.5,78.119,78.08,21.04347344]
[1771812139560,4.5,78.119,78.081,44.82524557]
[1771812140055,4.5,78.109,78.081,12.80721302]
[1771812141668,4.5,78.107,78.06,21.24347344]
[1771812141867,4.5,78.099,78.061,12.81049435]
[1771812142168,4.5,78.099,78.061,44.83673024]
[1771812143059,4.5,78.089,78.06,0.2]
[1771812143264,12.80278588,78.108,78.061,12.81049435]
[1771812143265,4.5,78.098,78.061,12.81049435]
[1771812143746,4.5,78.098,78.07,21.04347344]
[1771812144243,4.5,78.098,78.061,44.83673024]
[1771812144849,4.5,78.098,78.07,21.04347344]
[1771812145058,4.5,78.098,78.061,44.83673024]
[1771812145367,4.5,78.098,78.06,21.24347344]
[1771812145368,21.02424837,78.08,78.06,0.2]
[1771812145565,4.5,78.079,78.06,0.2]
[1771812146157,4.5,78.076,78.03,32.03880115]
[1771812146358,21.02424837,78.05,78.01,21.02424837]
[1771812146665,21.02424837,78.05,77.948,51.31606417]
[1771812146666,4.5,78.039,78.001,12.82034845]
[1771812146965,4.5,78.039,78.001,44.87121959]
[1771812147168,4.5,78.058,78.03,21.02424837]
[1771812147354,4.5,78.068,78.03,21.02424837]
[1771812147668,0.14216157,78.088,78.05,21.02424837]
[1771812147869,12.80010512,78.125,78.08,21.02424837]
[1771812148069,9.2143987,78.17,78.1,21.02424837]
[1771812148070,21.02424837,78.14,78.1,21.02424837]
[1771812148274,21.02424837,78.13,78.08,21.02424837]
[1771812148450,21.02424837,78.14,78.1,21.02424837]
[1771812148649,21.02424837,78.16,78.11,21.02424837]
[1771812148851,21.02424837,78.13,78.08,21.02424837]
[1771812149749,4.35,78.119,78.059,0.3]
[1771812149954,4.35,78.119,78.071,0.3]
[1771812150162,4.35,78.109,78.07,21.02424837]
[1771812150984,4.35,78.109,78.08,21.02424837]
[1771812151177,4.35,78.125,78.08,21.02424837]
[1771812152083,4.35,78.125,78.056,64.05657476]
[1771812152084,0.14216157,78.118,78.056,64.05657476]
[1771812152284,4.35,78.089,78.041,0.3]
[1771812152464,4.35,78.069,78.024,44.85799241]
[1771812152664,4.35,78.079,78.031,0.3]
[1771812153186,4.35,78.079,78.03,21.02424837]
[1771812153478,4.35,78.069,78.024,44.85799241]
[1771812154183,4.35,78.069,78.03,21.02424837]
[1771812156079,4.35,78.069,78.031,44.85396829]
[1771812156285,4.35,78.103,78.05,21.02424837]
[1771812156471,4.35,78.089,78.041,0.3]
[1771812157186,4.35,78.089,78.05,21.02424837]
[1771812157774,4.35,78.106,78.06,21.02424837]
[1771812158190,4.35,78.079,78.041,12.81377737]
[1771812158374,4.35,78.049,78.002,44.87064433]
[1771812158569,4.35,78.039,78.002,44.87064433]
[1771812158771,4.35,78.051,78.01,21.02424837]
[1771812158990,21.02424837,78.05,78.003,0.3]
[1771812159272,4.35,78.06,78.02,21.02424837]
[1771812159473,4.35,78.076,78.03,21.02424837]
[1771812159683,4.35,78.076,78.04,21.02424837]
[1771812160182,4.35,78.076,78.041,44.8482208]
[1771812160690,4.35,78.089,78.041,44.8482208]
[1771812160891,4.35,78.089,78.05,21.02424837]
[1771812161190,4.35,78.102,78.07,21.02424837]
[1771812161372,4.35,78.102,78.08,21.02424837]
[1771812161580,4.35,78.102,78.07,21.02424837]
[1771812161774,51.14998371,78.202,78.041,44.8482208]
[1771812161775,4.35,78.079,78.041,12.81377737]
[1771812161969,4.35,78.059,78.02,21.02424837]
[1771812162174,4.35,78.059,78.021,12.81706207]
[1771812162476,4.35,78.058,78.021,44.85971725]
[1771812162677,4.35,78.049,78.021,12.81706207]
[1771812163080,4.35,78.049,78.03,21.02424837]
[1771812163982,4.35,78.049,78.021,44.85971725]
[1771812164294,4.35,78.049,78.03,21.02424837]
[1771812164875,21.02424837,78.07,78.04,21.02424837]
[1771812165075,3.69383402,78.077,78.04,21.02424837]
[1771812165494,12.80344156,78.104,78.06,21.02424837]
[1771812165800,21.02424837,78.1,78.06,21.02424837]
[1771812166394,21.02424837,78.11,78.08,21.02424837]
[1771812166577,3.69383402,78.113,78.08,21.02424837]
[1771812166784,21.02424837,78.11,78.07,21.02424837]
[1771812166996,4.17673326,78.109,78.071,12.80885347]
[1771812167196,4.17673326,78.109,78.071,44.83098716]
[1771812167495,4.17673326,78.109,78.08,21.02424837]
[1771812167798,4.17673326,78.109,78.071,44.83098716]
[1771812168189,4.17673326,78.099,78.071,12.80885347]
[1771812168499,3.69383402,78.117,78.08,21.02424837]
[1771812168684,51.15199754,78.199,78.1,21.02424837]
[1771812168685,21.02424837,78.14,78.1,21.02424837]
[1771812169085,0.28432314,78.139,78.11,21.02424837]
[1771812169382,21.02424837,78.13,78.092,12.805409]
[1771812169890,21.02424837,78.14,78.1,21.02424837]
[1771812170090,21.02424837,78.13,78.1,21.02424837]
[1771812170482,4.17673326,78.129,78.092,44.81893151]
[1771812170688,4.17673326,78.129,78.1,21.02424837]
[1771812170995,4.17673326,78.141,78.101,4.13988519]
[1771812171204,4.17673326,78.152,78.12,21.02424837]
[1771812171387,4.17673326,78.152,78.13,21.02424837]
[1771812171781,4.17673326,78.152,78.12,21.02424837]
[1771812172181,4.17673326,78.139,78.101,44.81376678]
[1771812172389,4.17673326,78.139,78.11,21.02424837]
[1771812172696,60.56311916,78.23,78.13,21.02424837]
[1771812172697,4.17673326,78.162,78.13,21.02424837]
[1771812173205,4.17673326,78.159,78.124,12.80016384]
[1771812174300,4.17673326,78.159,78.124,44.80057344]
[1771812174692,4.17673326,78.17,78.131,4.13988519]
[1771812175000,37.99528954,78.16,78.124,12.80016384]
[1771812175183,4.17673326,78.159,78.113,12.80196638]
[1771812175384,4.17673326,78.149,78.113,12.80196638]
[1771812175909,4.17673326,78.139,78.102,12.80376942]
[1771812176106,21.02424837,78.13,78.091,4.13988519]
[1771812176401,21.02424837,78.14,78.091,4.13988519]
[1771812176702,4.17673326,78.129,78.088,32.01498526]
[1771812179114,25.20098163,78.14,78.091,4.13988519]
[1771812179331,4.17673326,78.139,78.091,4.13988519]
[1771812179793,21.02424837,78.12,78.085,12.80655695]
[1771812180205,4.17673326,78.129,78.085,12.80655695]
[1771812180400,4.17673326,78.153,78.101,4.13988519]
[1771812180609,4.17673326,78.179,78.131,4.13988519]
[1771812180803,4.17673326,78.179,78.141,4.13988519]
[1771812181005,21.02424837,78.18,78.131,4.13988519]
[1771812181218,25.20098163,78.17,78.131,4.13988519]
[1771812181399,4.17673326,78.169,78.131,4.13988519]
[1771812181602,21.02424837,78.16,78.119,4.13988519]
[1771812181802,4.17673326,78.159,78.119,4.13988519]
[1771812182016,4.17673326,78.159,78.121,4.13988519]
[1771812182400,21.12424837,78.19,78.141,4.13988519]
[1771812182603,21.12424837,78.19,78.161,4.13988519]
[1771812182604,0.1,78.19,78.161,4.13988519]
[1771812182817,0.1,78.19,78.171,4.13988519]
[1771812183017,4.17673326,78.179,78.14,4.13988519]
[1771812183402,21.12424837,78.19,78.142,4.13988519]
[1771812183804,0.1,78.19,78.151,4.13988519]
[1771812184003,4.17673326,78.189,78.151,4.13988519]
[1771812184725,0.1,78.19,78.151,4.13988519]
[1771812185229,0.1,78.19,78.15,21.02424837]
[1771812185230,4.17673326,78.219,78.181,4.13988519]
[1771812185522,25.20098163,78.23,78.181,4.13988519]
[1771812185834,4.17673326,78.209,78.17,4.13988519]
[1771812186124,4.17673326,78.209,78.171,4.13988519]
[1771812186527,4.31889483,78.219,78.171,4.13988519]
[1771812186827,4.17673326,78.219,78.181,4.13988519]
[1771812187026,16.9613508,78.219,78.182,12.79066792]
[1771812187202,0.1,78.22,78.183,4.13988519]
[1771812187407,0.1,78.22,78.191,4.13988519]
[1771812188424,4.154805,78.199,78.159,31.98591197]
[1771812188629,0.28432314,78.198,78.161,4.12853798]
[1771812188925,4.154805,78.199,78.161,4.12853798]
[1771812189127,4.154805,78.187,78.15,12.79590531]
[1771812189504,4.154805,78.187,78.15,48.91420656]
[1771812189710,4.154805,78.187,78.151,4.12853798]
[1771812190210,21.02424837,78.2,78.151,4.12853798]
[1771812190405,4.254805,78.22,78.181,4.12853798]
[1771812190610,4.154805,78.209,78.168,4.12853798]
[1771812190815,12.78461754,78.219,78.151,4.12853798]
[1771812190816,4.154805,78.197,78.151,4.12853798]
[1771812191015,0.28432314,78.198,78.142,4.12853798]
[1771812191016,4.154805,78.187,78.142,4.12853798]
[1771812191728,4.154805,78.179,78.142,4.12853798]
[1771812192308,4.154805,78.159,78.12,4.12853798]
[1771812192514,4.154805,78.159,78.12,25.15278635]
[1771812192708,4.154805,78.171,78.121,4.12853798]
[1771812192913,12.78968639,78.188,78.121,4.12853798]
[1771812192914,21.02424837,78.16,78.121,4.12853798]
[1771812193120,4.154805,78.167,78.123,4.12853798]
[1771812193733,12.79212791,78.174,78.122,44.80172037]
[1771812193734,21.02424837,78.18,78.141,4.12853798]
[1771812193932,25.17905337,78.18,78.141,4.12853798]
[1771812194231,31.96949275,78.2,78.122,108.80417806]
[1771812194232,4.154805,78.19,78.151,4.12853798]
[1771812194626,25.17905337,78.2,78.16,21.02424837]
[1771812194828,25.17905337,78.2,78.123,3.69383402]
[1771812194829,3.69383402,78.207,78.171,4.12853798]
[1771812195030,4.154805,78.205,78.162,12.79394078]
[1771812195230,4.154805,78.203,78.17,21.02424837]
[1771812195431,4.154805,78.203,78.171,4.12853798]
[1771812196535,4.36160651,78.199,78.162,12.79394078]
[1771812197031,0.28432314,78.209,78.17,25.14616397]
[1771812197229,4.36160651,78.199,78.164,12.79361342]
[1771812197434,4.36160651,78.199,78.165,4.1219156]
[1771812197933,12.78576177,78.212,78.18,21.02424837]
[1771812198113,4.36160651,78.211,78.171,4.1219156]
[1771812198314,21.12424837,78.22,78.201,4.1219156]
[1771812198315,0.1,78.22,78.201,4.1219156]
[1771812198627,4.36160651,78.248,78.21,21.02424837]